fUSD/lending_fUSD_20241112
["ID","MTS","AMOUNT","RATE_DAILY","PERIOD"]
[342102516,1731444632169,-5385.28908,0.00012501,2]
[342102518,1731444632180,-40719.03926795,0.00012501,2]
[342102523,1731444632222,-7077.38677632,0.00012501,2]
[342102528,1731444632260,-6694.09950156,0.00012501,2]
[342102530,1731444632271,-16330.76800821,0.00012501,2]
[342102531,1731444632283,-800.3814,0.00012501,2]
[342102532,1731444632293,-3431.01407077,0.00012501,2]
[342102533,1731444632304,-1560.62395386,0.00012501,2]
[342102542,1731444632474,-250.0,0.00012501,2]
[342102543,1731444632485,-5417.00955669,0.00012501,2]
[342102571,1731444638609,-397.16,0.00012501,2]
[342102573,1731444638621,-3890.47033098,0.00012501,2]
[342102594,1731444638836,-137561.96832751,0.00012501,2]
[342102603,1731444638912,-1810.94730776,0.00012501,2]
[342102608,1731444638949,-243068.80073771,0.00012501,2]
[342102609,1731444638959,-6093.01646804,0.00012501,2]
[342102610,1731444638971,-1902776.31176187,0.00012501,2]
[342102611,1731444639009,-1384.28397108,0.00012501,2]
[342102612,1731444639020,-4904.09405828,0.00012501,2]
[342102613,1731444639032,-358.64999988,0.00012501,2]
[342102614,1731444639043,-1411830.58639125,0.00012501,2]
[342102623,1731444639135,-2690.56534578,0.00012501,2]
[342102643,1731444640272,-4593.93423319,0.00012501,2]
[342102651,1731444640344,-5813.32825801,0.00012501,2]
[342102654,1731444640356,-713.29967,0.00012501,2]
[342102656,1731444640367,-808.6884723,0.00012501,2]
[342102658,1731444640379,-1153.695,0.00012501,2]
[342102660,1731444640390,-3588.6120066,0.00012501,2]
[342102662,1731444640401,-535.30336788,0.00012501,2]
[342102785,1731444642941,-38802.76044966,0.00012501,2]
[342102787,1731444643310,-2649.4519635,0.00012501,2]
[342102788,1731444643321,-2527.39903753,0.00012501,2]
[342102789,1731444643332,-5989.29759878,0.00012501,2]
[342102790,1731444643419,-2211.0089857,0.00012501,2]
[342102791,1731444643431,-14099.71712518,0.00012501,2]
[342102792,1731444643477,-11795.88729181,0.00012501,2]
[342102793,1731444643488,-8500.13936578,0.00012501,2]
[342102794,1731444643499,-1489.70241815,0.00012501,2]
[342102801,1731444646024,-570.64632851,0.00012501,2]
[342102802,1731444646036,-1131.02778576,0.00012501,2]
[342102805,1731444646459,-20789.25283237,0.00012501,2]
[342102806,1731444646478,-447.2676,0.00012501,2]
[342102807,1731444646490,-1002.553664,0.00012501,2]
[342102808,1731444646574,-8960.11888447,0.00012501,2]
[342102809,1731444646586,-508.08145989,0.00012501,2]
[342102810,1731444646599,-17952.56129652,0.00012501,2]
[342102811,1731444652934,318.76,0.00010959,2]
[342102812,1731444659227,474.43,0.00011902,2]
[342102814,1731444694940,425.6,0.00011867,2]
[342102815,1731444704387,412.79,0.00011831,2]
[342102816,1731444728224,929.95931386,0.00012301,2]
[342102817,1731444737477,155.39,0.00011776,2]
[342102818,1731444778000,2465.96,0.000118,2]
[342102819,1731444780793,150.0,0.00012255,2]
[342102820,1731444781257,150.0,0.00012232,2]
[342102821,1731444781461,150.0,0.000123,2]
[342102822,1731444810357,500.0,0.00011596,2]
[342102823,1731444821338,-300.0,0.00012375,2]
[342102824,1731444821530,-300.0,0.00012376,2]
[342102825,1731444821541,-1400.0,0.00012376,2]
[342102826,1731444823611,234.69,0.00011616,2]
[342102827,1731444824284,234.69,0.00012197,2]
[342102828,1731444842451,150.0,0.00012301,2]
[342102829,1731444842658,150.0,0.00012233,2]
[342102830,1731444842890,150.0,0.0001227,2]
[342102831,1731444842990,150.0,0.00012275,2]
[342102832,1731444843044,150.0,0.0001224,2]
[342102833,1731444843132,150.0,0.00012274,2]
[342102834,1731444843306,150.0,0.0001225,2]
[342102835,1731444870489,309.6,0.00010959,2]
[342102836,1731444881371,619.2,0.00010959,2]
[342102837,1731444903061,-150.0,0.00012323,2]
[342102838,1731444903103,-150.0,0.00012335,2]
[342102839,1731444903140,-150.0,0.00012354,2]
[342102840,1731444903178,-150.0,0.00012373,2]
[342102841,1731444903577,150.0,0.00012283,2]
[342102842,1731444903674,-500.0,0.00012376,2]
[342102843,1731444961974,150.0,0.00012304,2]
[342102844,1731444962182,150.0,0.00012266,2]
[342102845,1731444962402,150.0,0.00012298,2]
[342102846,1731444968109,1749.02,0.00011459,2]
[342102848,1731445058917,250.0,0.00011439,2]
[342102850,1731445080289,7756.0,0.00012252,2]
[342102851,1731445084314,5938.82,0.00011444,2]
[342102852,1731445106118,282.53,0.00011442,2]
[342102853,1731445123005,-150.0,0.00012318,2]
[342102854,1731445123029,-150.0,0.00012323,2]
[342102855,1731445123052,-150.0,0.00012331,2]
[342102856,1731445123076,-150.0,0.00012334,2]
[342102857,1731445123098,-150.0,0.00012348,2]
[342102858,1731445123119,-150.0,0.000124,2]
[342102859,1731445123141,-300.0,0.000124,2]
[342102860,1731445123164,-20968.512,0.00012401,2]
[342102861,1731445123187,-37766.4884,0.00012401,2]
[342102862,1731445123209,-173.06340705,0.00012401,2]
[342102863,1731445123232,-156.6015676,0.00012401,2]
[342102864,1731445123253,-322.4037,0.00012401,2]
[342102865,1731445123275,-10376.6775,0.00012401,2]
[342102866,1731445123297,-6275.83070321,0.00012401,2]
[342102867,1731445123320,-500.0,0.00012401,2]
[342102868,1731445123342,-565.1159,0.00012401,2]
[342102869,1731445123367,-156.60156757,0.00012401,2]
[342102870,1731445123389,-197.46,0.00012401,2]
[342102871,1731445123410,-156.60156757,0.00012401,2]
[342102872,1731445123432,-156.60156757,0.00012402,2]
[342102873,1731445123454,-156.60156757,0.00012402,2]
[342102874,1731445123475,-156.60156757,0.00012402,2]
[342102875,1731445123497,-200.0,0.00012402,2]
[342102876,1731445123520,-1474.418,0.00012402,2]
[342102877,1731445123541,-173.06340705,0.00012402,2]
[342102878,1731445123564,-156.60156757,0.00012402,2]
[342102879,1731445123587,-150.0,0.00012404,2]
[342102880,1731445123610,-150.0,0.00012404,2]
[342102881,1731445123639,-150.0,0.00012408,2]
[342102882,1731445123662,-150.0,0.00012414,2]
[342102883,1731445123684,-150.0,0.00012431,2]
[342102884,1731445123710,-150.0,0.00012437,2]
[342102885,1731445123733,-150.0,0.00012438,2]
[342102886,1731445123755,-150.0,0.00012453,2]
[342102887,1731445123778,-150.0,0.00012456,2]
[342102888,1731445123802,-150.0,0.00012456,2]
[342102889,1731445123826,-150.0,0.00012461,2]
[342102890,1731445123849,-150.0,0.00012468,2]
[342102891,1731445123873,-1566.01959493,0.00012473,2]
[342102892,1731445123894,-800.68887128,0.0001249,2]
[342102893,1731445123916,-2069.5974961,0.0001249,2]
[342102894,1731445123938,-150.0,0.0001249,2]
[342102895,1731445123960,-2082.1635473,0.0001249,2]
[342102896,1731445123982,-150.0,0.00012491,2]
[342102897,1731445124006,-150.0,0.00012498,2]
[342102898,1731445124028,-150.0,0.00012498,2]
[342102899,1731445124051,-150.0,0.00012498,2]
[342102900,1731445124074,-150.0,0.00012498,2]
[342102901,1731445124098,-150.0,0.00012498,2]
[342102902,1731445124120,-150.0,0.00012498,2]
[342102903,1731445124141,-150.0,0.00012498,2]
[342102904,1731445124163,-1028.82122674,0.000125,2]
[342102905,1731445124186,-1348966.48489186,0.00012501,2]
[342102906,1731445124207,-200.0,0.00012501,2]
[342102907,1731445124228,-200.0,0.00012501,2]
[342102909,1731445124249,-200.0,0.00012501,2]
[342102910,1731445124270,-444.77417151,0.00012501,2]
[342102911,1731445124292,-154.26944857,0.00012501,2]
[342102912,1731445124594,-500.0,0.00012501,2]
[342102913,1731445124617,-500.0,0.00012501,2]
[342102914,1731445124643,-500.0,0.00012501,2]
[342102915,1731445124667,-500.0,0.00012501,2]
[342102916,1731445124690,-500.0,0.00012501,2]
[342102917,1731445124714,-500.0,0.00012501,2]
[342102918,1731445124737,-500.0,0.00012501,2]
[342102919,1731445124759,-500.0,0.00012501,2]
[342102920,1731445124781,-500.0,0.00012501,2]
[342102921,1731445124805,-500.0,0.00012501,2]
[342102922,1731445124829,-500.0,0.00012501,2]
[342102923,1731445124852,-500.0,0.00012501,2]
[342102924,1731445124874,-500.0,0.00012501,2]
[342102925,1731445124897,-500.0,0.00012501,2]
[342102926,1731445124918,-500.0,0.00012501,2]
[342102927,1731445124940,-500.0,0.00012501,2]
[342102928,1731445124962,-500.0,0.00012501,2]
[342102929,1731445124983,-500.0,0.00012501,2]
[342102930,1731445125006,-500.0,0.00012501,2]
[342102931,1731445125028,-500.0,0.00012501,2]
[342102932,1731445125049,-500.0,0.00012501,2]
[342102933,1731445125072,-500.0,0.00012501,2]
[342102934,1731445125095,-500.0,0.00012501,2]
[342102935,1731445125117,-613.65300035,0.00012501,2]
[342102936,1731445125139,-500.0,0.00012501,2]
[342102937,1731445125161,-500.0,0.00012501,2]
[342102938,1731445125186,-500.0,0.00012501,2]
[342102939,1731445125209,-350.0,0.00012501,2]
[342102940,1731445125230,-2000.0,0.00012501,2]
[342102941,1731445125252,-200.0,0.00012501,2]
[342102942,1731445125273,-3000.0,0.00012501,2]
[342102943,1731445125295,-577177.3460634,0.00012502,2]
[342102944,1731445125320,-7564.77295063,0.00012502,2]
[342102945,1731445125343,-17958168.17529024,0.00012502,2]
[342102946,1731445125365,-1000.0,0.00012502,2]
[342102947,1731445125386,-1000.0,0.00012502,2]
[342102948,1731445125407,-1000.0,0.00012502,2]
[342102949,1731445125430,-749.85845269,0.00012502,2]
[342102950,1731445125451,-1105.68501838,0.00012557,2]
[342102951,1731445125472,-1105.68501837,0.00012557,2]
[342102952,1731445125492,-160.93859423,0.00012573,2]
[342102953,1731445125514,-500.0,0.00012573,2]
[342102954,1731445125536,-160.07818317,0.00012573,2]
[342102955,1731445125558,-245.07520013,0.00012573,2]
[342102956,1731445125581,-224.67722518,0.00012573,2]
[342102957,1731445125602,-500.0,0.00012573,2]
[342102958,1731445125628,-500.70694715,0.00012573,2]
[342102959,1731445125650,-500.0,0.00012573,2]
[342102960,1731445125671,-500.0,0.00012573,2]
[342102961,1731445125691,-160.6135666,0.00012573,2]
[342102962,1731445125716,-500.0,0.00012573,2]
[342102963,1731445125737,-3904.0,0.00012579,2]
[342102964,1731445125759,-200.0,0.00012626,2]
[342102965,1731445125780,-200.0,0.00012626,2]
[342102966,1731445125804,-200.0,0.00012626,2]
[342102967,1731445125827,-2000.0,0.00012626,2]
[342102968,1731445125849,-200.0,0.00012626,2]
[342102969,1731445125871,-150.0,0.00012635,2]
[342102970,1731445125893,-150.0,0.00012635,2]
[342102971,1731445125915,-150.0,0.00012635,2]
[342102972,1731445125936,-1157.98886627,0.00012635,2]
[342102973,1731445125957,-105256.89630835,0.00012635,2]
[342102974,1731445125977,-11759.02256913,0.00012635,2]
[342102975,1731445125998,-483.32,0.00012637,2]
[342102976,1731445126020,-1125.03185873,0.00012642,2]
[342102977,1731445126041,-1314.24679209,0.00012642,2]
[342102978,1731445126062,-167.0,0.00012673,2]
[342102979,1731445126084,-1254.0,0.000127,2]
[342102980,1731445126105,-563.0,0.000127,2]
[342102981,1731445126127,-453.0,0.000127,2]
[342102982,1731445126149,-1991.0,0.000127,2]
[342102983,1731445126172,-279.56,0.000127,2]
[342102984,1731445126194,-628.0,0.000127,2]
[342102985,1731445126216,-1923.0,0.000127,2]
[342102986,1731445126238,-626.657,0.000127,2]
[342102987,1731445126259,-1259.0,0.000127,2]
[342102988,1731445126280,-3745.0,0.000127,2]
[342102989,1731445126301,-919.58,0.000127,2]
[342102990,1731445126325,-3487.0,0.000127,2]
[342102991,1731445126346,-922.0,0.000127,2]
[342102992,1731445126367,-5930.0,0.000127,2]
[342102993,1731445126388,-158.792,0.000127,2]
[342102994,1731445126410,-150.0,0.000127,2]
[342102995,1731445126431,-150.235,0.000127,2]
[342102996,1731445126452,-166.793,0.000127,2]
[342102997,1731445126473,-150.0,0.000127,2]
[342102998,1731445126494,-170.108,0.000127,2]
[342102999,1731445126514,-290.667,0.000127,2]
[342103000,1731445126534,-150.0,0.000127,2]
[342103001,1731445126555,-250.0,0.000127,2]
[342103002,1731445126580,-151.196,0.000127,2]
[342103003,1731445126601,-248.7,0.000127,2]
[342103004,1731445126626,-203.309,0.000127,2]
[342103005,1731445126648,-206.446,0.000127,2]
[342103006,1731445126669,-153.135,0.000127,2]
[342103007,1731445126691,-1159.0,0.000127,2]
[342103008,1731445126713,-13634.0,0.000127,2]
[342103009,1731445126734,-1091.0,0.000127,2]
[342103010,1731445126756,-20000.0,0.0001275,3]
[342103011,1731445126777,-200.0,0.00012752,2]
[342103012,1731445126798,-200.0,0.00012752,2]
[342103013,1731445126823,-200.0,0.00012752,2]
[342103014,1731445126844,-2000.0,0.00012752,2]
[342103015,1731445126865,-200.0,0.00012752,2]
[342103016,1731445126887,-234.69,0.00012777,2]
[342103017,1731445126908,-2700.0,0.0001278,2]
[342103018,1731445126929,-1100.0,0.0001278,2]
[342103019,1731445126952,-428.74,0.000128,2]
[342103020,1731445126972,-150.0,0.000128,2]
[342103021,1731445126993,-432.53,0.000128,2]
[342103022,1731445127015,-248.61,0.000128,2]
[342103023,1731445127232,-433.11,0.000128,2]
[342103024,1731445127254,-432.53,0.000128,2]
[342103025,1731445127274,-762.97,0.000128,2]
[342103026,1731445127295,-362.27,0.000128,2]
[342103027,1731445127316,-150.0,0.000128,2]
[342103028,1731445127336,-150.0,0.000128,2]
[342103029,1731445127357,-432.67,0.000128,2]
[342103030,1731445127378,-613.15,0.000128,2]
[342103031,1731445127399,-762.97,0.000128,2]
[342103032,1731445127419,-433.11,0.000128,2]
[342103033,1731445127439,-362.27,0.000128,2]
[342103034,1731445127461,-864.64,0.000128,2]
[342103035,1731445127482,-762.97,0.000128,2]
[342103036,1731445127503,-150.0,0.000128,2]
[342103037,1731445127524,-150.0,0.000128,2]
[342103038,1731445127545,-432.53,0.000128,2]
[342103039,1731445127565,-762.97,0.000128,2]
[342103040,1731445127587,-1671.79,0.000128,2]
[342103041,1731445127608,-432.53,0.000128,2]
[342103042,1731445127633,-433.11,0.000128,2]
[342103043,1731445127656,-724.43,0.000128,2]
[342103044,1731445127677,-150.0,0.000128,2]
[342103045,1731445127700,-150.0,0.000128,2]
[342103046,1731445127721,-432.53,0.000128,2]
[342103047,1731445127743,-762.97,0.000128,2]
[342103048,1731445127764,-150.0,0.000128,2]
[342103049,1731445127785,-362.27,0.000128,2]
[342103050,1731445127806,-762.97,0.000128,2]
[342103051,1731445127833,-432.53,0.000128,2]
[342103052,1731445127854,-433.11,0.000128,2]
[342103053,1731445127876,-369.98,0.000128,2]
[342103054,1731445127897,-762.97,0.000128,2]
[342103055,1731445127918,-433.11,0.000128,2]
[342103056,1731445127940,-361.28,0.000128,2]
[342103057,1731445127961,-432.53,0.000128,2]
[342103058,1731445127985,-762.97,0.000128,2]
[342103059,1731445128009,-554.07,0.000128,2]
[342103060,1731445128031,-432.53,0.000128,2]
[342103061,1731445128052,-865.98,0.000128,2]
[342103062,1731445128073,-762.97,0.000128,2]
[342103063,1731445128093,-432.53,0.000128,2]
[342103064,1731445128114,-150.0,0.000128,2]
[342103065,1731445128135,-300.0,0.000128,2]
[342103066,1731445128158,-865.62,0.000128,2]
[342103067,1731445128179,-762.97,0.000128,2]
[342103068,1731445128200,-432.53,0.000128,2]
[342103069,1731445128222,-762.97,0.000128,2]
[342103070,1731445128245,-432.53,0.000128,2]
[342103071,1731445128266,-762.97,0.000128,2]
[342103072,1731445128287,-762.97,0.000128,2]
[342103073,1731445128308,-762.97,0.000128,2]
[342103074,1731445128332,-432.53,0.000128,2]
[342103075,1731445128353,-865.98,0.000128,2]
[342103076,1731445128382,-432.53,0.000128,2]
[342103077,1731445128424,-150.0,0.000128,2]
[342103078,1731445128464,-432.91,0.000128,2]
[342103079,1731445128508,-762.97,0.000128,2]
[342103080,1731445128549,-776.13,0.000128,2]
[342103081,1731445128590,-150.0,0.000128,2]
[342103082,1731445128628,-300.0,0.000128,2]
[342103083,1731445128665,-432.53,0.000128,2]
[342103084,1731445128709,-150.0,0.000128,2]
[342103085,1731445128752,-312.22,0.000128,2]
[342103086,1731445128788,-300.0,0.000128,2]
[342103087,1731445128828,-762.97,0.000128,2]
[342103088,1731445128864,-150.0,0.000128,2]
[342103089,1731445128899,-300.0,0.000128,2]
[342103090,1731445128935,-858.83,0.000128,2]
[342103091,1731445128972,-408.42,0.000128,2]
[342103092,1731445129007,-362.27,0.000128,2]
[342103093,1731445129042,-300.0,0.000128,2]
[342103094,1731445129081,-150.0,0.000128,2]
[342103095,1731445129117,-433.11,0.000128,2]
[342103096,1731445129153,-150.0,0.000128,2]
[342103097,1731445129192,-362.27,0.000128,2]
[342103098,1731445129229,-432.53,0.000128,2]
[342103099,1731445129267,-762.97,0.000128,2]
[342103100,1731445129303,-1000.0,0.00012861,2]
[342103101,1731445129340,-150.0,0.00012877,2]
[342103102,1731445129383,-150.0,0.00012877,2]
[342103103,1731445129419,-300.0,0.00012879,2]
[342103104,1731445129455,-200.0,0.0001288,2]
[342103105,1731445129490,-200.0,0.0001288,2]
[342103106,1731445129524,-200.0,0.0001288,2]
[342103107,1731445129559,-200.0,0.0001288,2]
[342103108,1731445129596,-188.16,0.00012893,2]
[342103109,1731445129633,-273.98,0.00012893,2]
[342103110,1731445129670,-404.79,0.00012893,2]
[342103111,1731445129705,-6369.34,0.00012893,2]
[342103112,1731445129742,-181718.02989482,0.000129,3]
[342103113,1731445129779,-151.0,0.000129,2]
[342103114,1731445129816,-279.600975,0.000129,2]
[342103115,1731445129852,-151.0,0.000129,2]
[342103116,1731445129886,-467.96618,0.000129,2]
[342103117,1731445129922,-151.0,0.000129,2]
[342103118,1731445129966,-488.727779,0.000129,2]
[342103119,1731445130001,-151.0,0.000129,2]
[342103120,1731445130033,-292241.63195319,0.000129,3]
[342103121,1731445130067,-190.588194,0.000129,2]
[342103122,1731445130107,-313.333646,0.000129,2]
[342103123,1731445130141,-151.0,0.000129,2]
[342103124,1731445130175,-151.0,0.000129,2]
[342103125,1731445130208,-438.34224,0.000129,2]
[342103126,1731445130242,-151.0,0.000129,2]
[342103127,1731445130280,-151.0,0.000129,2]
[342103128,1731445130597,-151.0,0.000129,2]
[342103129,1731445130655,-151.0,0.000129,2]
[342103130,1731445130678,-151.0,0.000129,2]
[342103131,1731445130700,-2239.97098,0.000129,2]
[342103132,1731445130721,-2239.97098,0.000129,2]
[342103133,1731445130743,-2239.97098,0.000129,2]
[342103134,1731445130765,-237.487026,0.000129,2]
[342103135,1731445130789,-685.634845,0.000129,2]
[342103136,1731445130810,-237.487026,0.000129,2]
[342103137,1731445130833,-237.487026,0.000129,2]
[342103138,1731445130853,-151.0,0.000129,2]
[342103139,1731445130874,-151.0,0.000129,2]
[342103140,1731445130895,-151.0,0.000129,2]
[342103141,1731445130916,-151.0,0.000129,2]
[342103142,1731445130937,-151.0,0.000129,2]
[342103143,1731445130958,-151.0,0.000129,2]
[342103144,1731445130979,-214.381485,0.000129,2]
[342103145,1731445131000,-231.125201,0.000129,2]
[342103146,1731445131020,-231.125201,0.000129,2]
[342103147,1731445131043,-231.125201,0.000129,2]
[342103148,1731445131064,-159.860899,0.000129,2]
[342103149,1731445131088,-220.373671,0.000129,2]
[342103150,1731445131115,-436.16929,0.000129,2]
[342103151,1731445131138,-436.16929,0.000129,2]
[342103152,1731445131159,-2555.576371,0.000129,2]
[342103153,1731445131180,-2555.576371,0.000129,2]
[342103154,1731445131201,-2555.576371,0.000129,2]
[342103155,1731445131222,-2555.576371,0.000129,2]
[342103156,1731445131243,-151.0,0.000129,2]
[342103157,1731445131264,-151.0,0.000129,2]
[342103158,1731445131285,-151.0,0.000129,2]
[342103159,1731445131306,-151.0,0.000129,2]
[342103160,1731445131329,-151.0,0.000129,2]
[342103161,1731445131350,-212.714751,0.000129,2]
[342103162,1731445131371,-151.0,0.000129,2]
[342103163,1731445131392,-151.0,0.000129,2]
[342103164,1731445131414,-174.133518,0.000129,2]
[342103165,1731445131436,-174.133518,0.000129,2]
[342103166,1731445131458,-174.133518,0.000129,2]
[342103167,1731445131479,-260.936374,0.000129,2]
[342103168,1731445131500,-260.936374,0.000129,2]
[342103169,1731445131522,-260.936374,0.000129,2]
[342103170,1731445131544,-260.936374,0.000129,2]
[342103171,1731445131566,-1177.968181,0.000129,2]
[342103172,1731445131589,-1177.968181,0.000129,2]
[342103173,1731445131611,-1177.968181,0.000129,2]
[342103174,1731445131638,-151.0,0.000129,2]
[342103175,1731445131659,-151.0,0.000129,2]
[342103176,1731445131680,-151.0,0.000129,2]
[342103177,1731445131703,-151.0,0.000129,2]
[342103178,1731445131724,-621.31034,0.000129,2]
[342103179,1731445131745,-621.31034,0.000129,2]
[342103180,1731445131767,-151.0,0.000129,2]
[342103181,1731445131787,-180.384381,0.000129,2]
[342103182,1731445131809,-151.0,0.000129,2]
[342103183,1731445131831,-180.384381,0.000129,2]
[342103184,1731445131853,-180.384381,0.000129,2]
[342103185,1731445131873,-180.384381,0.000129,2]
[342103186,1731445131898,-3115.566436,0.000129,2]
[342103187,1731445131921,-151.0,0.000129,2]
[342103188,1731445131945,-151.0,0.000129,2]
[342103189,1731445131968,-3115.566436,0.000129,2]
[342103190,1731445131989,-3115.566436,0.000129,2]
[342103191,1731445132012,-355.860311,0.000129,2]
[342103192,1731445132035,-355.860311,0.000129,2]
[342103193,1731445132057,-151.0,0.000129,2]
[342103194,1731445132079,-151.0,0.000129,2]
[342103195,1731445132103,-151.0,0.000129,2]
[342103196,1731445132126,-151.0,0.000129,2]
[342103197,1731445132148,-151.0,0.000129,2]
[342103198,1731445132172,-151.0,0.000129,2]
[342103199,1731445132197,-151.0,0.000129,2]
[342103200,1731445132218,-151.0,0.000129,2]
[342103201,1731445132246,-151.0,0.000129,2]
[342103202,1731445132267,-151.0,0.000129,2]
[342103203,1731445132289,-502.185467,0.000129,2]
[342103204,1731445132310,-502.185467,0.000129,2]
[342103205,1731445132335,-502.185467,0.000129,2]
[342103206,1731445132356,-502.185467,0.000129,2]
[342103207,1731445132378,-259.938714,0.000129,2]
[342103208,1731445132400,-259.938714,0.000129,2]
[342103209,1731445132422,-259.938714,0.000129,2]
[342103210,1731445132443,-259.938714,0.000129,2]
[342103211,1731445132465,-151.0,0.000129,2]
[342103212,1731445132486,-151.0,0.000129,2]
[342103213,1731445132508,-151.0,0.000129,2]
[342103215,1731445132529,-151.0,0.000129,2]
[342103216,1731445132551,-275.686286,0.000129,2]
[342103217,1731445132575,-151.0,0.000129,2]
[342103218,1731445132596,-246.873182,0.000129,2]
[342103219,1731445132621,-246.873182,0.000129,2]
[342103220,1731445132648,-246.873182,0.000129,2]
[342103221,1731445132673,-246.873182,0.000129,2]
[342103222,1731445132697,-151.0,0.000129,2]
[342103223,1731445132722,-238.080944,0.000129,2]
[342103224,1731445132745,-238.080944,0.000129,2]
[342103225,1731445132767,-151.0,0.000129,2]
[342103226,1731445132794,-238.080944,0.000129,2]
[342103227,1731445132820,-238.080944,0.000129,2]
[342103228,1731445132843,-151.0,0.000129,2]
[342103229,1731445132866,-151.0,0.000129,2]
[342103230,1731445132889,-151.0,0.000129,2]
[342103231,1731445132910,-167.744767,0.000129,2]
[342103232,1731445132933,-151.0,0.000129,2]
[342103233,1731445132956,-151.0,0.000129,2]
[342103234,1731445132977,-151.0,0.000129,2]
[342103235,1731445132997,-151.0,0.000129,2]
[342103236,1731445133018,-151.0,0.000129,2]
[342103237,1731445133040,-151.0,0.000129,2]
[342103238,1731445133061,-363.82,0.000129,2]
[342103239,1731445133084,-762.97,0.000129,2]
[342103240,1731445133105,-151.0,0.000129,2]
[342103241,1731445133129,-151.0,0.000129,2]
[342103242,1731445133150,-151.0,0.000129,2]
[342103243,1731445133172,-151.0,0.000129,2]
[342103244,1731445133194,-151.0,0.000129,2]
[342103245,1731445133216,-151.0,0.000129,2]
[342103246,1731445133237,-279.600975,0.000129,2]
[342103247,1731445133260,-433.11,0.000129,2]
[342103248,1731445133282,-623.18,0.000129,2]
[342103249,1731445133312,-432.53,0.000129,2]
[342103250,1731445133341,-362.27,0.000129,2]
[342103251,1731445133364,-151.0,0.000129,2]
[342103252,1731445133386,-151.0,0.000129,2]
[342103253,1731445133409,-285.16929,0.000129,2]
[342103254,1731445133432,-151.0,0.000129,2]
[342103255,1731445133454,-151.0,0.000129,2]
[342103256,1731445133722,-151.0,0.000129,2]
[342103257,1731445133747,-151.0,0.000129,2]
[342103258,1731445133777,-151.0,0.000129,2]
[342103259,1731445133800,-151.650044,0.000129,2]
[342103260,1731445133826,-151.0,0.000129,2]
[342103261,1731445133849,-154.071682,0.000129,2]
[342103262,1731445133871,-151.0,0.000129,2]
[342103263,1731445133894,-237.487026,0.000129,2]
[342103264,1731445133917,-220.373671,0.000129,2]
[342103265,1731445133941,-174.133518,0.000129,2]
[342103266,1731445133964,-151.0,0.000129,2]
[342103267,1731445133986,-151.0,0.000129,2]
[342103268,1731445134009,-231.125201,0.000129,2]
[342103269,1731445134033,-155.778322,0.000129,2]